bitfinex/quotes_ETHUSD_20250822
["timestamp","ask_amount","ask_price","bid_price","bid_amount"]
[1755881594824,0.002,4754.5,4754.4,4.15675074]
[1755881595014,0.002,4754.5,4754.4,4.17778388]
[1755881595515,0.002,4755.0,4754.4,4.17778388]
[1755881595516,0.002,4755.0,4754.7,0.66]
[1755881595715,0.002,4756.1,4755.1,0.66]
[1755881595900,0.002,4756.1,4755.7,0.66]
[1755881596119,0.002,4756.1,4755.7,7.66925813]
[1755881596312,0.002,4756.1,4755.9,3.66]
[1755881596508,0.002,4756.1,4756.0,4.75205421]
[1755881596708,0.002,4756.1,4756.0,5.35256543]
[1755881597034,0.002,4757.0,4756.0,5.35256543]
[1755881597035,0.002,4757.0,4756.1,10.502335]
[1755881597338,0.002,4757.0,4756.4,0.66]
[1755881597537,0.002,4757.0,4756.9,0.1048]
[1755881597839,0.002,4757.0,4756.9,0.69451581]
[1755881598351,0.7589,4757.0,4756.9,0.29865074]
[1755881598936,0.7589,4757.0,4756.9,0.19385074]
[1755881599249,0.8637,4757.0,4756.9,0.19385074]
[1755881599472,0.002,4757.0,4756.9,0.19385074]
[1755881599624,0.002,4757.0,4756.9,0.60155074]
[1755881599956,0.002,4757.0,4756.9,5.67798943]
[1755881600171,0.002,4757.0,4756.9,10.44000834]
[1755881600316,0.002,4757.0,4756.9,10.15936734]
[1755881600523,0.002,4757.0,4756.9,6.01406734]
[1755881600844,0.2946,4757.0,4756.9,3.29865074]
[1755881601163,0.2946,4757.0,4756.9,0.19385074]
[1755881601461,0.7589,4757.0,4756.9,0.19385074]
[1755881601843,0.7589,4757.0,4755.3,16.93159224]
[1755881602014,0.1048,4756.4,4755.6,0.1048]
[1755881602220,0.4643,4756.3,4755.7,0.19273467]
[1755881602417,0.4643,4756.3,4755.6,0.1048]
[1755881602418,0.4643,4756.3,4755.8,0.19273467]
[1755881602646,0.4643,4756.3,4755.9,0.19273467]
[1755881602851,0.3974,4756.0,4754.6,0.1048]
[1755881603033,0.1048,4755.3,4754.7,0.19323015]
[1755881603358,2.2153,4755.9,4755.8,0.02]
[1755881603729,2.6127,4755.9,4755.8,0.02]
[1755881605270,2.5079,4755.9,4755.8,0.02]
[1755881605424,2.5079,4755.9,4755.8,0.21331549]
[1755881605425,2.6127,4755.9,4755.8,0.21331549]
[1755881605963,1.751,4755.9,4755.8,0.21331549]
[1755881608177,1.751,4755.9,4755.8,0.20441549]
[1755881608324,1.751,4755.9,4755.8,0.19331549]
[1755881610258,0.1048,4756.1,4755.8,0.19331549]
[1755881610463,0.1048,4756.1,4755.9,0.19331549]
[1755881610629,0.1048,4756.1,4756.0,0.1937285]
[1755881610827,0.002,4756.7,4756.0,0.1937285]
[1755881611026,0.1048,4756.6,4756.1,0.1937285]
[1755881611223,0.1048,4756.6,4756.2,0.21475368]
[1755881611456,0.1048,4756.6,4756.3,0.1937285]
[1755881611662,0.1048,4756.6,4756.4,0.1937285]
[1755881611857,0.1048,4756.6,4756.5,0.1937285]
[1755881612369,0.002,4756.7,4756.5,0.1937285]
[1755881612533,0.002,4756.7,4756.6,0.1937285]
[1755881613470,0.2946,4756.7,4756.6,0.1937285]
[1755881613670,0.002,4756.7,4756.6,0.1937285]
[1755881613841,0.002,4756.7,4756.6,0.4966285]
[1755881614162,0.2946,4756.7,4756.6,0.1937285]
[1755881614336,0.8637,4756.7,4756.6,0.1937285]
[1755881615042,0.3994,4756.7,4756.6,0.1937285]
[1755881615938,0.002,4757.0,4756.6,1.1566285]
[1755881616145,0.002,4757.2,4757.0,3.66]
[1755881616455,0.002,4757.2,4757.1,1.1566285]
[1755881617271,0.002,4757.2,4757.1,0.1937285]
[1755881617494,0.2946,4757.2,4757.1,0.1937285]
[1755881617769,0.7589,4757.2,4757.1,0.1937285]
[1755881617938,0.7589,4757.2,4755.9,3.764]
[1755881618140,0.7589,4757.2,4756.0,2.05870653]
[1755881618326,0.2946,4757.2,4756.0,2.05870653]
[1755881618527,2.2031,4757.1,4754.8,1.77]
[1755881618739,0.4531,4757.0,4754.8,1.77]
[1755881618967,0.4531,4757.0,4754.9,0.19359117]
[1755881619270,0.4531,4757.0,4755.0,0.19359117]
[1755881619432,0.4531,4757.0,4754.8,1.77]
[1755881619756,0.4531,4757.0,4755.4,13.37966528]
[1755881619964,0.4531,4757.0,4755.6,0.66]
[1755881620129,0.4531,4757.0,4755.8,0.66]
[1755881620460,0.4531,4757.0,4755.9,0.19373019]
[1755881620662,0.4531,4757.0,4756.0,0.19373019]
[1755881620828,0.4531,4757.0,4756.1,0.19373019]
[1755881621028,0.4531,4757.0,4756.2,0.19373019]
[1755881621261,0.4531,4757.0,4756.3,0.19373019]
[1755881621547,0.4531,4757.0,4756.4,0.19373019]
[1755881621856,0.4531,4757.0,4756.5,0.19373019]
[1755881622165,1.75,4757.1,4755.2,0.66]
[1755881622166,0.313,4756.6,4755.2,3.0]
[1755881622336,0.313,4756.6,4755.3,1.06473202]
[1755881622540,0.4531,4756.5,4755.4,0.19399496]
[1755881622740,0.4531,4756.5,4755.5,0.19399496]
[1755881623046,0.4531,4756.5,4755.6,0.19399496]
[1755881623253,0.4531,4756.5,4755.7,0.19399496]
[1755881623426,0.4531,4756.5,4755.8,0.19399496]
[1755881623629,0.4531,4756.5,4755.9,0.19399496]
[1755881623855,0.4531,4756.5,4756.0,0.19399496]
[1755881624057,0.4531,4756.4,4756.1,0.19399496]
[1755881624361,0.4531,4756.9,4755.0,0.66]
[1755881624561,0.4531,4756.9,4754.9,0.4356]
[1755881624562,0.4531,4756.9,4755.2,0.66]
[1755881624738,0.4531,4756.9,4755.3,0.21566454]
[1755881624938,0.4531,4756.9,4755.4,0.19463538]
[1755881625151,0.4531,4756.9,4755.6,0.66]
[1755881625469,0.4531,4756.9,4755.7,0.19463538]
[1755881625634,0.4531,4756.9,4755.8,0.19463538]
[1755881625837,0.4531,4756.9,4755.9,0.19463538]
[1755881626048,0.4531,4756.9,4756.0,0.19463538]
[1755881626338,0.4531,4756.9,4756.1,0.19463538]
[1755881626554,0.4551,4756.9,4756.2,0.19463538]
[1755881626745,0.4551,4756.9,4755.5,0.001]
[1755881626746,0.4178,4756.3,4755.5,0.001]
[1755881626941,0.1048,4756.0,4755.6,0.19475342]
[1755881627143,0.1048,4756.0,4755.7,0.19475342]
[1755881627343,0.1048,4756.0,4755.8,0.19475342]
[1755881627547,0.5579,4756.0,4755.9,0.19475342]
[1755881627737,0.8709,4756.0,4755.9,0.19475342]
[1755881627931,0.1048,4756.0,4755.9,0.19475342]
[1755881628234,0.1048,4756.0,4755.9,0.19547495]
[1755881628667,0.1048,4756.0,4755.9,0.19555795]
[1755881629364,0.4178,4756.0,4755.9,0.19555795]
[1755881629567,0.8709,4756.0,4755.9,0.19555795]
[1755881630173,0.4178,4756.0,4755.9,0.19555795]
[1755881630666,0.1048,4756.0,4755.9,0.19555795]
[1755881631262,0.4178,4756.0,4755.9,0.19555795]
[1755881631642,0.8709,4756.0,4755.9,0.19555795]
[1755881632671,0.1048,4756.0,4755.9,0.19555795]
[1755881633168,0.4178,4756.0,4755.9,0.19555795]
[1755881633370,0.8709,4756.0,4755.9,0.19555795]
[1755881636249,0.8709,4756.0,4755.5,0.001]
[1755881636463,0.1048,4755.6,4755.5,0.001]
[1755881636884,0.4178,4755.6,4755.5,0.001]
[1755881637062,0.8709,4755.6,4755.5,0.001]
[1755881639753,1.5309,4755.6,4755.5,0.001]
[1755881640250,8.2879,4755.6,4755.5,0.001]
[1755881640663,8.74103079,4755.6,4755.5,0.001]
[1755881640871,4.98403079,4755.6,4755.5,0.001]
[1755881641077,8.2879,4755.6,4755.5,0.001]
[1755881641467,8.85903224,4755.6,4755.5,0.001]
[1755881641853,8.74100441,4755.6,4755.5,0.001]
[1755881642272,8.89719734,4755.6,4755.5,0.001]
[1755881642479,9.01497689,4755.6,4755.5,0.001]
[1755881642883,9.34428501,4755.6,4755.5,0.001]
[1755881643456,9.22650546,4755.6,4755.5,0.001]
[1755881643693,9.34418418,4755.6,4755.5,0.001]
[1755881643977,10.09704813,4755.6,4755.5,0.001]
[1755881644380,9.34418418,4755.6,4755.5,0.001]
[1755881644682,5.58718418,4755.6,4755.5,0.001]
[1755881644893,9.34418418,4755.6,4755.5,0.001]
[1755881645098,9.90831905,4755.6,4755.5,0.001]
[1755881645266,9.90818843,4755.6,4755.5,0.001]
[1755881645777,9.34405356,4755.6,4755.5,0.001]
[1755881646147,8.90994544,4755.6,4755.5,0.001]
[1755881646352,8.90894544,4755.6,4755.5,0.001]
[1755881647294,3.66,4755.5,4755.3,0.001]
[1755881647452,4.54365251,4755.4,4755.3,0.001]
[1755881647652,6.64652503,4755.4,4755.3,0.001]
[1755881647986,4.99675251,4755.4,4755.3,0.001]
[1755881648150,7.09962503,4755.4,4755.3,0.001]
[1755881648350,7.09962503,4755.4,4753.9,0.001]
[1755881648351,0.66,4755.0,4753.9,0.001]
[1755881648551,0.66,4754.3,4753.9,0.001]
[1755881648808,0.66,4753.9,4753.8,0.02]
[1755881648951,22.97097617,4753.9,4753.8,0.02]
[1755881649155,3.66,4753.8,4751.1,0.001]
[1755881649493,0.9547,4753.5,4751.1,0.001]
[1755881649793,6.1574236,4753.5,4751.2,0.4434]
[1755881649956,6.6229236,4753.5,4751.2,0.4434]
[1755881650145,10.3789236,4753.5,4751.2,0.4434]
[1755881650360,6.6229236,4753.5,4751.5,0.4444]
[1755881650779,6.1722,4753.5,4751.5,0.4444]
[1755881650985,5.5122,4753.5,4751.9,0.4434]
[1755881651281,8.8017,4753.5,4752.3,0.4434]
[1755881651496,5.8027,4753.5,4751.5,0.001]
[1755881651803,9.2682,4753.5,4752.0,0.4434]
[1755881652089,6.2682,4753.5,4752.0,0.4434]
[1755881652459,9.2682,4753.5,4752.0,0.4434]
[1755881652690,4.752,4753.5,4751.5,0.001]
[1755881652891,8.508,4753.5,4752.4,0.4434]
[1755881653407,9.2682,4753.5,4752.0,0.4434]
[1755881653905,1.752,4753.5,4753.4,0.3054]
[1755881654062,5.507,4753.5,4753.4,0.3054]
[1755881654405,5.507,4753.5,4753.4,0.001]
[1755881654584,6.2672,4753.5,4753.4,0.001]
[1755881655130,9.9272,4753.5,4753.4,0.001]
[1755881656090,10.032,4753.5,4753.4,0.001]
[1755881656291,9.5665,4753.5,4753.4,0.001]
[1755881656510,5.1515,4753.5,4753.4,0.001]
[1755881656716,8.6118,4753.5,4753.4,0.001]
[1755881656921,8.9065,4753.5,4753.4,0.001]
[1755881657219,10.032,4753.5,4753.4,0.001]
[1755881658945,10.031,4753.5,4753.4,0.001]
[1755881659098,6.277,4753.5,4753.4,0.001]
[1755881659300,10.031,4753.5,4753.4,0.001]
[1755881659511,10.115318,4753.5,4753.4,0.001]
[1755881659913,0.66,4753.3,4752.4,0.001]
[1755881660119,0.1048,4752.9,4752.4,0.001]
[1755881660288,6.8588,4752.9,4752.4,0.001]
[1755881660729,6.943124,4752.9,4752.4,0.001]
[1755881661303,6.838324,4752.9,4752.8,0.3244]
[1755881661491,3.8588,4752.9,4752.8,0.3244]
[1755881661900,0.1048,4752.9,4752.8,0.3244]
[1755881662315,3.8578,4752.9,4752.8,0.3244]
[1755881662730,0.1048,4752.9,4752.8,0.3244]
[1755881662895,3.8578,4752.9,4752.8,0.3244]
[1755881663222,0.1048,4752.9,4752.8,0.3244]
[1755881663432,3.8578,4752.9,4750.9,3.0]
[1755881663632,0.1056,4751.5,4751.0,1.70603888]
[1755881663803,3.753,4751.4,4751.1,0.02104775]
[1755881664002,3.753,4751.4,4750.9,0.02104864]
[1755881664500,3.753,4751.4,4750.8,0.1056]
[1755881664693,3.753,4751.4,4750.9,0.02104864]
[1755881665126,3.753,4751.4,4750.8,0.1056]
[1755881665292,3.753,4751.4,4750.9,0.02104864]
[1755881667106,1.752,4753.1,4751.4,3.9273]
[1755881667312,0.1048,4753.0,4751.9,3.66]
[1755881667529,0.1048,4753.0,4752.6,16.91274013]
[1755881667705,0.1048,4753.0,4752.7,0.02104067]
[1755881668304,3.8568,4753.3,4752.7,0.02104067]
[1755881668629,0.02,4753.8,4752.7,3.68104067]
[1755881668809,0.02,4753.8,4753.3,20.01754013]
[1755881669200,0.02,4753.8,4753.3,20.67754013]
[1755881669805,0.02,4754.8,4753.4,10.218447]
[1755881670009,0.02,4754.8,4754.7,0.7648]
[1755881670196,0.02,4754.8,4754.7,1.20728]
[1755881672030,0.02,4754.8,4754.7,0.1048]
[1755881672231,0.02,4754.8,4754.4,3.0]
[1755881672435,0.02,4754.8,4754.5,0.66]
[1755881672936,0.02,4754.8,4754.6,0.68103226]
[1755881673140,0.02,4754.8,4754.6,0.66]
[1755881673433,0.02,4754.8,4754.7,2.05727401]
[1755881674101,0.02,4754.8,4753.7,3.66]
[1755881674543,0.02,4754.8,4753.8,0.02]
[1755881675104,0.02,4754.8,4753.9,0.68103536]
[1755881675402,0.02,4754.8,4753.9,0.66]
[1755881677755,0.02,4754.8,4754.0,0.68103491]
[1755881677914,0.02,4754.8,4754.1,0.43610349]
[1755881679717,0.4555,4754.7,4753.8,0.02]
[1755881679917,1.7720488,4754.6,4753.8,0.02]
[1755881680250,3.7670488,4754.5,4753.8,0.02]
[1755881680421,4.2225488,4754.5,4753.8,0.02]
[1755881680922,0.4555,4754.4,4753.8,0.02]
[1755881681257,0.0210488,4754.3,4753.8,0.02]
[1755881681445,3.746,4754.5,4753.8,0.02]
[1755881681630,0.0210488,4754.4,4753.8,0.02]
[1755881682220,0.1048,4754.0,4753.3,0.1048]
[1755881682421,1.751,4754.6,4753.5,0.66]
[1755881682623,3.745,4755.2,4754.1,3.0]
[1755881682947,3.745,4755.2,4753.7,3.66]
[1755881682948,0.4555,4755.1,4753.7,0.66]
[1755881683148,0.4555,4755.1,4753.7,3.66]
[1755881683348,0.1048,4754.7,4754.0,0.1048]
[1755881683547,0.1048,4754.7,4753.7,3.0]
[1755881683748,0.1048,4754.7,4753.8,0.61073778]
[1755881684757,0.1048,4754.7,4753.9,0.02103536]
[1755881685054,0.1048,4754.7,4753.8,0.61073778]
[1755881685254,0.0210488,4754.7,4753.8,0.61073778]
[1755881685458,0.1048,4754.4,4753.9,0.02103536]
[1755881685754,0.1048,4754.4,4753.9,0.59015045]
[1755881687128,0.1048,4754.4,4753.9,0.56911509]
[1755881687326,0.4555,4754.3,4753.8,0.1048]
[1755881687526,0.4555,4754.3,4753.3,16.91274013]
[1755881687527,0.2937,4753.9,4752.6,16.91274013]
[1755881687733,0.2937,4753.9,4753.1,0.1048]
[1755881687734,0.3985,4753.9,4753.1,0.1048]
[1755881688147,0.4555,4753.8,4753.1,0.1048]
[1755881688338,0.1048,4753.3,4752.8,0.02]
[1755881688726,0.5603,4753.3,4752.8,0.02]
[1755881689130,0.4555,4753.2,4752.8,0.02]
[1755881689461,0.1048,4753.0,4752.8,0.02]
[1755881689840,0.5603,4753.0,4752.8,0.02]
[1755881690746,0.1048,4753.0,4752.8,0.021]
[1755881691148,0.854,4753.0,4752.8,0.021]
[1755881691631,0.8750488,4753.0,4752.8,0.021]
[1755881693638,4.6170488,4753.0,4752.8,0.021]
[1755881694146,0.5813488,4753.0,4752.8,0.021]
[1755881694351,4.3233488,4753.0,4752.8,0.021]
[1755881694674,4.3023,4753.0,4752.8,0.021]
[1755881696068,0.1048,4753.0,4752.8,0.021]
[1755881696241,3.8468,4753.0,4752.8,0.021]
[1755881696573,4.596,4753.0,4752.8,0.021]
[1755881697670,4.6170488,4753.0,4752.8,0.021]
[1755881700746,4.3013,4753.0,4752.8,0.021]
[1755881701065,3.9511658,4753.0,4752.8,0.021]
[1755881701381,4.6160488,4753.0,4752.8,0.021]
[1755881701988,3.8668488,4753.0,4752.8,0.021]
[1755881702350,0.1258488,4753.0,4752.8,0.021]
[1755881702646,4.6150488,4753.0,4752.8,0.021]
[1755881702851,0.4555,4752.9,4752.8,0.021]
[1755881703048,0.7492,4752.9,4752.8,0.021]
[1755881703852,3.8448,4752.9,4752.8,0.021]
[1755881704250,0.1048,4752.9,4752.8,0.021]
[1755881704450,4.5102488,4752.9,4752.8,0.021]
[1755881704660,4.5092488,4752.9,4752.8,0.021]
[1755881704861,3.7600488,4752.9,4752.8,0.021]
[1755881705363,4.5092488,4752.9,4752.8,0.021]
[1755881705562,3.739,4752.9,4752.8,0.021]
[1755881705867,5.491,4753.1,4752.8,0.021]
[1755881707599,0.002,4755.2,4753.2,3.66]
[1755881707600,1.752,4754.6,4753.2,3.66]
[1755881707781,1.752,4754.6,4752.8,0.021]
[1755881707782,4.1945,4754.5,4752.8,0.021]
[1755881707961,0.0210488,4754.4,4752.9,0.19419818]
[1755881708305,0.4555,4754.3,4753.1,0.66]
[1755881708475,0.0210488,4754.2,4753.2,0.19419818]
[1755881708790,4.212,4754.1,4753.3,0.19419818]
[1755881708964,0.0210488,4754.2,4752.8,0.021]
[1755881708965,0.0210488,4754.0,4753.4,0.19419818]
[1755881709166,0.0210488,4754.0,4752.8,0.021]
[1755881709167,3.7590488,4754.0,4753.5,0.19419818]
[1755881709391,1.752,4754.6,4753.7,0.66]
[1755881709686,1.752,4754.6,4752.8,0.04204022]
[1755881709687,3.738,4754.5,4753.9,3.66]
[1755881709856,3.738,4754.5,4754.0,0.19419818]
[1755881710060,3.738,4754.5,4754.1,0.21523265]
[1755881710269,3.738,4754.5,4754.2,0.19419818]
[1755881710469,3.738,4754.5,4754.3,0.19419818]
[1755881710790,3.738,4754.5,4754.4,0.19419818]
[1755881712059,1.752,4754.6,4754.4,0.19419818]
[1755881712264,1.752,4754.6,4753.9,0.66]
[1755881712265,1.752,4754.6,4754.5,0.19419818]
[1755881712601,5.489,4754.6,4754.5,0.19419818]
[1755881713372,6.2556,4754.6,4754.5,0.19419818]
[1755881714492,6.3604,4754.6,4754.5,0.19419818]
[1755881714897,6.81312843,4754.6,4752.0,0.1056]
[1755881715110,0.1048,4752.9,4751.9,0.001]
[1755881715311,5.8864,4752.9,4751.9,0.001]
[1755881715513,6.3594,4752.9,4751.9,0.001]
[1755881717924,1.752,4752.9,4752.2,3.66]
[1755881718101,5.5928,4752.9,4752.3,0.66]
[1755881718303,5.488,4752.9,4752.5,0.66]
[1755881718689,5.488,4752.9,4752.7,0.66]
[1755881718890,5.488,4752.9,4752.8,0.16786411]
[1755881719493,5.488,4752.9,4752.8,0.021]
[1755881720826,0.002,4755.2,4752.8,0.021]
[1755881720827,3.735,4753.6,4752.9,0.66]
[1755881721930,3.735,4754.4,4754.3,0.66]
[1755881722744,0.002,4754.7,4754.3,0.12583359]
[1755881723248,0.002,4754.7,4754.6,0.1048]
[1755881723452,0.473,4754.6,4753.4,3.0]
[1755881723753,0.473,4754.6,4752.5,13.39694206]
[1755881723754,0.1048,4754.0,4753.2,0.1048]
[1755881723907,3.734,4753.9,4753.2,0.1048]
[1755881724307,3.734,4753.9,4753.3,0.66]
[1755881724535,3.734,4753.8,4753.3,0.66]
[1755881724743,3.734,4753.8,4753.2,0.1048]
[1755881724947,0.4940488,4753.7,4753.2,0.1048]
[1755881725153,0.2936,4753.3,4753.2,0.1048]
[1755881725305,0.2936,4753.3,4752.4,0.001]
[1755881725306,4.5006,4753.3,4752.4,0.001]
[1755881725649,0.1048,4753.1,4752.4,0.1066]
[1755881726013,0.5778,4753.1,4752.4,0.1066]
[1755881726345,0.1048,4753.1,4752.5,0.66]
[1755881726851,0.1048,4753.1,4752.9,0.19379979]
[1755881727020,0.1048,4753.1,4753.0,0.19379979]
[1755881727711,5.485,4753.2,4753.1,0.66]
[1755881727922,0.473,4754.9,4753.1,0.85379979]
[1755881728120,3.8378,4754.6,4753.5,3.66]
[1755881728326,3.8378,4754.6,4754.0,0.66]
[1755881728648,3.8378,4754.6,4754.2,0.66]
[1755881728823,3.8378,4754.6,4754.4,0.66]
[1755881729022,3.8378,4754.6,4754.5,0.19379979]
[1755881729623,4.3108,4754.6,4754.5,0.19379979]
[1755881729924,4.6254488,4754.6,4754.5,0.19379979]
[1755881730854,3.8378,4754.6,4754.5,0.85379979]
[1755881731366,0.1068,4754.7,4754.5,0.85379979]
[1755881731526,0.002,4754.7,4754.6,0.85379979]
[1755881731851,0.002,4754.7,4754.6,3.98163205]
[1755881732024,0.002,4754.7,4754.6,3.96059979]
[1755881732360,0.002,4754.7,4754.6,3.85379979]
[1755881732567,0.002,4754.7,4754.6,3.19379979]
[1755881733027,0.002,4754.7,4754.6,3.85379979]
[1755881733225,0.002,4754.7,4754.6,5.5780829]
[1755881735228,0.002,4754.7,4754.6,5.57769541]
[1755881735472,0.002,4755.5,4754.7,33.66]
[1755881735672,0.002,4756.5,4755.7,17.05694206]
[1755881735961,0.002,4756.5,4755.7,21.14244128]
[1755881736129,0.002,4756.5,4755.7,27.52084128]
[1755881736330,0.002,4756.5,4755.7,27.60505328]
[1755881736527,0.002,4756.5,4755.8,3.66]
[1755881736742,0.002,4756.5,4756.0,3.66]
[1755881736962,0.002,4756.5,4756.2,3.66]
[1755881737162,0.002,4756.5,4756.4,3.66]
[1755881737465,0.002,4756.5,4756.4,0.85262122]
[1755881737678,0.002,4756.5,4756.4,0.87364552]
[1755881737889,0.002,4756.5,4756.4,0.85262122]
[1755881738258,0.7456,4756.5,4756.4,0.19228813]
[1755881738879,0.002,4756.5,4756.4,0.19228813]
[1755881740484,0.7581,4756.5,4756.4,0.19228813]
[1755881740881,0.452,4756.5,4756.4,0.19228813]
[1755881741289,0.002,4756.5,4756.4,0.85228813]
[1755881741484,0.002,4756.5,4756.4,0.97811243]
[1755881741656,0.002,4756.5,4756.4,0.95708813]
[1755881741857,0.002,4756.5,4756.4,7.68508813]
[1755881742160,0.002,4756.5,4756.4,8.45359694]
[1755881742360,0.002,4756.5,4756.4,4.72559694]
[1755881742558,0.452,4756.5,4756.4,3.85228813]
[1755881742760,0.7581,4756.5,4756.4,0.19228813]
[1755881743492,0.8629,4756.5,4755.8,0.02]
[1755881743662,0.4710488,4756.4,4755.9,0.19229708]
[1755881743858,0.4710488,4756.4,4755.8,0.02]
[1755881743859,0.4710488,4756.4,4756.0,0.19229708]
[1755881744058,0.4710488,4756.4,4756.1,0.19229708]
[1755881744290,0.4710488,4756.4,4755.8,0.02]
[1755881744291,0.1048,4755.9,4755.8,0.02]
[1755881744588,0.4109,4755.9,4755.8,0.21231876]
[1755881744788,0.8609,4755.9,4755.8,0.21244178]
[1755881745354,2.6119,4755.9,4755.8,0.21244178]
[1755881745788,2.6119,4755.9,4755.8,0.19244178]
[1755881746866,6.3389,4755.9,4755.8,0.19244178]
[1755881749578,0.002,4756.4,4755.8,0.19244178]
[1755881749759,0.002,4756.4,4756.0,0.66]
[1755881749958,0.002,4756.4,4756.1,0.19244178]
[1755881750188,0.002,4756.4,4756.2,0.19244178]
[1755881750398,0.002,4756.4,4756.3,0.19244178]
[1755881751407,0.002,4756.4,4756.3,0.95724178]
[1755881751573,0.002,4756.4,4756.3,1.42106852]
[1755881752600,0.002,4756.4,4756.3,4.42106852]
[1755881752766,0.002,4756.4,4756.3,4.44209326]
[1755881753170,0.002,4756.4,4756.3,4.44240793]
[1755881753397,0.002,4756.4,4756.3,4.44240189]
[1755881753810,0.002,4756.4,4756.3,4.22862674]
[1755881753970,0.002,4756.4,4756.3,4.42134711]
[1755881754479,0.002,4756.4,4756.3,0.76134711]
[1755881754696,0.002,4756.4,4756.3,0.29752037]
[1755881757872,0.002,4756.4,4756.3,0.95752037]
[1755881758074,0.002,4756.4,4756.3,0.85272037]
[1755881758270,0.002,4756.4,4756.3,0.95752037]
[1755881759471,0.002,4756.4,4756.3,0.95779632]
[1755881761227,0.002,4756.4,4756.3,20.86563001]
[1755881761424,0.002,4756.4,4756.3,22.95219301]
[1755881761709,0.002,4756.4,4756.3,5.851363]
[1755881761890,0.002,4756.4,4756.3,3.95802079]
[1755881762293,0.002,4756.4,4756.3,3.95797396]
[1755881763104,0.002,4756.4,4756.3,3.9789987]
[1755881763803,0.7581,4756.4,4756.3,0.19317396]
[1755881764706,0.452,4756.4,4756.3,0.19317396]
[1755881764909,0.7581,4756.4,4756.3,0.19317396]
[1755881765201,0.7791488,4756.4,4755.8,0.02]
[1755881765379,0.45,4756.3,4755.8,0.02]
[1755881765809,0.45,4756.2,4755.8,0.02]
[1755881766003,0.3061,4755.9,4755.8,0.02]
[1755881766284,0.7771488,4755.9,4755.8,0.02]
[1755881766508,0.7771488,4755.9,4755.3,0.001]
[1755881766710,0.45,4755.8,4754.8,0.02]
[1755881766896,0.3061,4754.9,4754.5,0.001]
[1755881767096,5.473,4754.8,4754.0,0.001]
[1755881767300,0.3061,4754.1,4753.5,0.001]
[1755881767499,0.0210488,4754.0,4753.5,0.001]
[1755881767807,1.751,4753.9,4753.5,0.001]
[1755881768005,2.201,4753.9,4753.5,0.001]
[1755881768187,2.1921,4753.9,4753.5,0.001]
[1755881768389,0.4411,4753.9,4753.5,0.001]
[1755881768587,2.1921,4754.6,4753.5,0.001]
[1755881768820,3.723,4755.0,4753.9,0.66]
[1755881769025,3.723,4755.0,4754.0,0.02103491]
[1755881769316,3.7440488,4755.0,4753.5,0.001]
[1755881769526,3.723,4755.0,4753.6,0.88319299]
[1755881769697,3.723,4755.0,4753.7,0.66]
[1755881771038,0.4411,4755.9,4754.0,0.66]
[1755881771328,0.4411,4756.3,4755.0,0.66]
[1755881771514,0.0210488,4756.2,4754.7,0.66]
[1755881771689,0.0210488,4756.2,4754.9,0.66]
[1755881773388,0.002,4756.4,4755.1,3.66]
[1755881773598,0.002,4756.4,4755.2,0.0210296]
[1755881773834,0.002,4756.4,4756.1,0.1048]
[1755881774197,0.2943,4756.2,4755.5,0.66]
[1755881774515,0.2943,4756.2,4755.8,0.66]
[1755881774927,0.1068,4756.4,4755.9,0.02102651]
[1755881775221,0.002,4756.4,4756.3,0.66]
[1755881775391,0.002,4756.4,4756.3,0.68102474]
[1755881776415,0.002,4756.4,4756.3,0.66]
[1755881777019,0.7374,4756.4,4755.4,3.721]
[1755881777236,0.7374,4756.4,4756.0,0.1048]
[1755881777395,0.4621488,4756.3,4756.1,0.19438539]
[1755881777596,0.4621488,4756.3,4756.2,0.19438539]
[1755881777811,0.8612488,4756.3,4756.2,0.19438539]
[1755881778198,0.8402,4756.3,4756.2,0.19438539]
[1755881778395,0.1048,4756.3,4756.2,0.19438539]
[1755881778724,0.002,4756.4,4756.2,0.19438539]
[1755881778923,0.002,4756.4,4756.3,0.21541013]
[1755881779161,0.002,4756.4,4756.3,0.85438539]
[1755881779598,0.002,4756.4,4756.3,0.7648]
[1755881779943,0.002,4756.4,4756.3,0.95920504]
[1755881780406,0.4431,4756.4,4756.3,0.29920504]
[1755881780605,0.8422,4756.4,4756.3,0.19440504]
[1755881781018,0.1068,4756.4,4756.3,0.19440504]
[1755881781334,0.002,4756.4,4756.3,0.19440504]
[1755881781824,0.4431,4756.4,4756.3,0.19440504]
[1755881781996,0.7374,4756.4,4756.3,0.19440504]
[1755881782198,0.002,4756.4,4756.3,0.19440504]
[1755881782411,0.002,4756.4,4756.3,0.87542978]
[1755881782595,0.002,4756.4,4756.3,0.85440504]
[1755881784212,0.7374,4756.4,4756.3,0.19440504]
[1755881785142,0.7374,4756.4,4755.4,0.1048]
[1755881785143,2.5094488,4756.4,4755.4,0.1048]
[1755881785339,0.4411,4756.3,4755.4,0.1048]
[1755881785638,0.2943,4755.5,4754.0,0.1048]
[1755881785839,0.4411,4755.4,4754.8,0.02]
[1755881786057,0.1048,4754.9,4754.8,0.02]
[1755881786677,1.751,4755.5,4754.8,0.02]
[1755881786815,0.1048,4755.3,4754.8,0.68]
[1755881787008,0.1048,4755.3,4754.9,0.68103093]